Cogmind - Beta 12 @@@ ROGUE MODE // 2023.07.11 @ 10:01:32 Player: Horse Result: Destroyed self via exploding Fusion Modulator Performance ------------- Evolutions (0) 0 Regions Visited (1) 200 Robots Destroyed (19) 95 Value Destroyed (415) 415 Prototype IDs (3) 60 Alien Tech Used (0) 0 Bonus (0) 0 TOTAL SCORE: 770 Bonus ------- None Cogmind --------- Core Integrity 0/250 Matter 208/300 Energy 125/125 System Corruption 1% Temperature Cool (12) Movement Walking (120) Location -10/Materials Parts ------- > --- POWER (1) -------- Light Ion Engine > --- PROPULSION (2) --- Aluminum Leg Aluminum Leg > --- UTILITY (2) ------ Medium Storage Unit Improved Terrain Scanner > --- WEAPON (2) ------- Assault Rifle Grenade Launcher > --- INVENTORY (10) --- Aluminum Leg Aluminum Leg Compact Wheel Improved Heat Sink Small Storage Unit Medium Storage Unit Seismic Detector Medium Laser Mining Laser Peak State ------------ > --- POWER ------------ Ion Engine > --- PROPULSION ------- Wheel Compact Wheel > --- UTILITY ---------- Medium Storage Unit Improved Terrain Scanner > --- WEAPON ----------- Small Laser Assault Rifle > --- INVENTORY -------- Light Ion Engine Aluminum Leg Aluminum Leg Wheel Small Storage Unit Medium Storage Unit Seismic Detector Targeting Computer Assault Rifle Mining Laser [Rating: 10] Favorites ----------- Power Light Ion Engine Engine Light Ion Engine Propulsion Wheel Leg Aluminum Leg Wheel Wheel Utility Improved Terrain Scanner Device Improved Terrain Scanner Storage Medium Storage Unit Processor Signal Interpreter Weapon Assault Rifle Energy Gun Small Laser Ballistic Gun Assault Rifle Launcher Grenade Launcher Build | -11 -10 ------- Run | Jun Mat Slots Evolved . | . . Power . | . . Propulsion . | . . Utility . | . . Weapon . | . . Parts Attached 22 | 6 16 Power 3 | . 3 Engine 3 | . 3 Core . | . . Reactor . | . . Propulsion 8 | 2 6 Treads . | . . Leg 4 | . 4 Wheel 4 | 2 2 Hover . | . . Flight . | . . Utility 6 | 2 4 Device 3 | 1 2 Storage 2 | 1 1 Processor 1 | . 1 Hackware . | . . Protection . | . . Artifact . | . . Weapon 5 | 2 3 Energy Gun 2 | 1 1 Energy Cannon . | . . Ballistic Gun 2 | 1 1 Ballistic Cannon . | . . Launcher 1 | . 1 Special Weapon . | . . Impact Weapon . | . . Slashing Weapon . | . . Piercing Weapon . | . . Special Melee Weapon . | . . Unidentified Prototypes . | . . Parts Lost 3 | . 3 Power . | . . Propulsion 1 | . 1 Utility . | . . Weapon 2 | . 2 Highest Loss Streak 2 | . 2 To Critical Strikes . | . . Average Slot Usage (%) 94 | . 94 Engine 12 | . 12 Leg 10 | . 10 Wheel 17 | . 17 Device 14 | . 14 Storage 14 | . 14 Energy Gun 9 | . 9 Ballistic Gun 14 | . 14 Naked Turns . | . . Heaviest Build 19 | 9 19 Greatest Support 26 | 20 26 Greatest Overweight (x) 1 | . 1 Average Overweight (x) . | . . Largest Inventory Capacity 10 | 8 10 Average Capacity 9 | 7 9 Most Carried 10 | 6 10 Average Carried 7 | 2 8 Final Capacity 10 | 8 10 Final Carried 9 | 6 9 Class Distribution -------------------- 100% | Mutant Dominant Class ---------------- Mutant | -10/Materials Resources | -11 -10 ----------- Run | Jun Mat Matter Collected 569 | 190 379 Remotely . | . . Salvage Created 528 | 139 389 Parts 40 | 10 30 Haulers Intercepted . | . . Recyclers Shooed 1 | . 1 Parts Field Recycled . | . . Retrieved Matter . | . . Parts Self-Destructed . | . . Prevented . | . . Kills | -11 -10 ------- Run | Jun Mat Combat Hostiles Destroyed 9 | . 9 Guns 9 | . 9 Classes Destroyed 7 | 2 5 Tunneler 4 | 4 . Recycler 1 | 1 . Mechanic 1 | . 1 Operator 1 | . 1 Watcher 3 | . 3 Swarmer 2 | . 2 Grunt 7 | . 7 Best Kill Streak 5 | 5 3 Combat Bots Only 2 | . 2 Max Kills in Single Turn 1 | 1 1 Gunslinging . | . . Exploded . | . . Melee . | . . Uniques/NPCs Destroyed . | . . Combat | -11 -10 -------- Run | Jun Mat Damage Taken 698 | . 698 Core 263 | . 263 Absorbed by Shields . | . . Core Remaining (%) 100 | 100 . Volleys Fired 84 | 11 73 Largest 2 | 2 2 Hottest 70 | 60 70 Shots Fired 135 | 22 113 Gun 133 | 22 111 Cannon . | . . Launcher 2 | . 2 Special . | . . Kinetic 82 | 11 71 Thermal 51 | 11 40 Explosive 2 | . 2 Electromagnetic . | . . Robot Hit Streak 8 | 7 8 Robot Miss Streak 5 | 2 5 Penetration Max . | . . Secondary Targets 1 | . 1 Max Gunslinging Chain 1 | . 1 Shots Hit Robots 74 | 14 60 Core Hits 32 | 6 26 Critical Kills . | . . Critical Parts Destroyed . | . . Critical Strikes . | . . Melee Attacks . | . . Impact . | . . Slashing . | . . Piercing . | . . Sneak Attacks . | . . Combat Hostiles . | . . Follow-up Attacks . | . . Damage Inflicted 1093 | 165 928 Guns 944 | 165 779 Cannons . | . . Explosions 149 | . 149 Melee . | . . Ramming . | . . Kinetic 650 | 114 536 Thermal 443 | 51 392 Explosive . | . . Electromagnetic . | . . Impact . | . . Slashing . | . . Piercing . | . . Highest Corruption 1 | . 1 Average Corruption 1 | . 1 Corruption Purged . | . . Corruption Blocked . | . . Effects 6 | . 6 Message Errors 1 | . 1 Matter Fused 1 | . 1 Heat Flow Errors 1 | . 1 Parts Rejected 1 | . 1 Data Loss (minor) 1 | . 1 Data Loss (major) 1 | . 1 Overload Shots . | . . Overflow Damage 81 | . 81 Projectiles . | . . Explosions 81 | . 81 Melee . | . . Knockbacks . | . . Impact . | . . Kinetic . | . . Secondary . | . . Self-Inflicted Damage 163 | . 163 Shots 2 | . 2 Rammed . | . . Targets Rammed . | . . Kicked . | . . Crushed . | . . Highest Temperature 369 | 15 369 Average Temperature 71 | 10 73 Received Heat Transfer 285 | . 285 Effects 2 | . 2 Interference 2 | . 2 Siege Activations . | . . Robots Corrupted . | . . Combat Hostiles . | . . Parts Fried . | . . Impact Corruptions . | . . Robots Melted . | . . Combat Hostiles . | . . Parts Melted . | . . Heat Transferred 787 | 125 662 Parts Sabotaged . | . . Parts Stolen . | . . Parts Stripped . | . . Power Chain Reactions . | . . Missiles Intercepted . | . . Alert | -11 -10 ------- Run | Jun Mat Peak Influence 267 | 25 267 Initial 16 | . 16 Average 89 | 9 99 Maximum Alert Level 1 | . 1 Low Security (%) 88 | 100 87 Level 1 11 | . 12 Level 2 . | . . Level 3 . | . . Level 4 . | . . Level 5 . | . . High Security . | . . Max Security . | . . Squads Dispatched 2 | . 2 Investigation 1 | . 1 Extermination . | . . Reinforcement 1 | . 1 Assault . | . . Garrison . | . . Intercept . | . . Searches Triggered . | . . Construction Impeded . | . . Haulers Reinforced . | . . Active Scanning Responses . | . . Cargo Convoy Interrupts . | . . Stealth | -11 -10 --------- Run | Jun Mat Distress Signals 1 | . 1 Communications Jammed . | . . Distress Signals . | . . Times Spotted 17 | . 17 Peak Tracking Total 4 | . 4 Tactical Retreats . | . . Traps | -11 -10 ------- Run | Jun Mat Traps Triggered 2 | . 2 Indirectly . | . . Trap Hack Attempts . | . . Triggered . | . . Disarmed . | . . Reprogrammed . | . . Reused . | . . Traps Extracted . | . . Installed . | . . Triggered . | . . Machines | -11 -10 ---------- Run | Jun Mat Machines Disabled 3 | . 3 Max in Single Turn 1 | . 1 Machines Repaired . | . . Machines Sabotaged . | . . Overloaded Fab Kills . | . . Hacking | -11 -10 --------- Run | Jun Mat Machines Accessed 6 | . 6 Terminals 5 | . 5 Fabricators . | . . Repair Stations . | . . Recycling Units 1 | . 1 Scanalyzers . | . . Garrison Access . | . . Total Hacks 25 | . 25 Successful 14 | . 14 Failed 11 | . 11 Catastrophic . | . . Database Lockouts . | . . Manual 17 | . 17 Terminals 22 | . 22 Fabricators . | . . Repair Stations . | . . Recycling Units 3 | . 3 Scanalyzers . | . . Garrison Access . | . . Terminal Hacks 5 | . 5 Robot Analysis 1 | . 1 Prototype ID Bank 2 | . 2 Terminal Index 1 | . 1 Unreport Threat 1 | . 1 Fabricator Hacks . | . . Repair Station Hacks . | . . Recycling Unit Hacks 2 | . 2 Process 1 | . 1 Retrieve Matter 1 | . 1 Scanalyzer . | . . Garrison Access Hacks . | . . Unauthorized Hacks 7 | . 7 Terminals 7 | . 7 Assimilate 3 | . 3 Botnet 3 | . 3 Operators 1 | . 1 Fabricators . | . . Repair Stations . | . . Recycling Units . | . . Scanalyzers . | . . Garrison Access . | . . Data Cores Recovered . | . . Used . | . . Hacking Detections 6 | . 6 Full Trace Events 3 | . 3 Feedback Events 1 | . 1 Corruption 1 | . 1 Feedback Blocked . | . . Robot Schematics Acquired . | . . Robots Built . | . . Authchips . | . . Time . | . . Total Robot Build Rating . | . . Part Schematics Acquired . | . . Parts Built . | . . Authchips . | . . Time . | . . Total Part Build Rating . | . . Parts Repaired . | . . Time . | . . Parts Recycled . | . . Recycled Matter 20 | . 20 Retrieved Matter 20 | . 20 Retrieved Components . | . . Parts Scanalyzed . | . . Part Schematics Acquired . | . . Parts Damaged . | . . Bothacking | -11 -10 ------------ Run | Jun Mat Used RIF Installer . | . . Robots Hacked . | . . Non-combat . | . . Combat . | . . Robot Hacks Applied . | . . Relay Couplers Released . | . . Fabnet Peak Effective % . | . . Robots Rewired . | . . Allies Hacked . | . . Hacks Repelled . | . . Allies | -11 -10 -------- Run | Jun Mat Total Allies . | . . Largest Group . | . . Highest-Rated Group . | . . Highest-Rated Ally . | . . Total Orders . | . . Ally Attacks . | . . Total Damage . | . . Kills . | . . Allies Corrupted . | . . Allies Melted . | . . Intel | -11 -10 ------- Run | Jun Mat Robot Analysis Total 1 | . 1 Derelict Logs Recovered . | . . Drone Launches . | . . Drone Recoveries . | . . Exploration | -11 -10 ------------- Run | Jun Mat Turns Passed 733 | 80 653 Spaces Moved 470 | 40 430 Core 3 | 3 . Treads . | . . Legs 166 | . 166 Wheels 301 | 37 264 Hover . | . . Flight . | . . Fastest Speed 50 | 50 80 Average Speed 96 | 77 98 Slowest Speed 120 | 80 120 Overloaded Moves . | . . Propulsion Burnouts . | . . Robots Hopped . | . . Cave-ins Triggered . | . . Exploration Rate (%) 38 | 4 72 Regions Visited 1 Branch Regions . Pre-discovered Areas . | . . Known Exits Taken . | . . Unknown Exits Taken 1 | 1 . Scrap Searched . | . . Spaces Dug 7 | . 7 Terrain Destroyed 54 | . 54 Melee . | . . Projectile . | . . AOE 54 | . 54 Terrain Rammed . | . . Walls Destroyed . | . . Machines Disabled . | . . Actions | -11 -10 --------- Run | Jun Mat Total 606 | 63 543 Wait 13 | 1 12 Move 469 | 39 430 Hop . | . . Pick Up 12 | 6 6 Fast Attach 9 | 6 3 Attach 5 | . 5 Detach 2 | . 2 Swap 8 | . 8 Drop 4 | . 4 Fire 84 | 11 73 Melee . | . . Ram . | . . Kick . | . . Crush . | . . Escape Stasis . | . . Rewire . | . . Trap . | . . Miscellaneous . | . . Route ------- -11/Junkyard -10/Materials (discovered 4 exits: [*Mat x2] / *Min x2) History --------- Turn | Location | Event 31 | -11/Junkyard | Discovered new exit (range 12) 81 | -11/Junkyard | Entered Materials 140 | -10/Materials | Discovered new exit (range 13) 157 | -10/Materials | Identified exit to Mines 251 | -10/Materials | Discovered new exit (range 16) 335 | -10/Materials | Build established: Mutant 387 | -10/Materials | Discovered exit to Mines (range 10) 404 | -10/Materials | Core integrity fell below 50% 619 | -10/Materials | Discovered new exit (range 14) 734 | -10/Materials | Destroyed self via exploding Fusion Modulator Last Messages --------------- >>Trojan(Assimilate) Trojan loaded successfully. Testing... System interface override in place. 00673_ Connecting with Terminal... 00676_ K-01 Serf collects debris. 00683_ Connecting with Terminal... >>Index(Terminals) Found 8 terminals. Downloaded coordinate data. 00690_ K-01 Serf cleans the Terminal. 00695_ Connecting with Recycling Unit... >>Recycling(Process) Analyzing inventory... Recycling at 100% efficiency: Lrg. Matter Pod (5) Lgt. Armor Plating (15) >>Retrieve(Matter) Matter ejected: 20 00734_ Fusion Modulator explodes. Map ----- +----------------------------------------------------+ | | | | | | | | | | | | | | | | | | | | | | | | | | | | | | | ???????????????##########????????????????????????? | | ???????????????# = ??????#?#???????????????? | | ???????????????# ???????????#????????????? | | ???????????????? ??#????#####????????????? | | ????????????????? ########"T"#####????????? | | ????????????????#+#;;;; ?# #????????? | | ????????????????# ;;;; ### #????????? | | ????????????????# ;;! "" [* #######??? | | ????????????????# ;; "Y / [* ##?? | | ????????????????# ;; #"" ##### #??? | | ????????????????# ;; @#### #???? ???? | | ????????#???????# ;; #??# #?###+##?? | | ??????????# ; ! #??# # | #?? | | ??????? o;;;;;;;#### =# #?? | | ??????? u k !+% #?? | | ????????????#####+###################T#*#= """ #?? | | ??????????????????????????????#?????### # """ #?? | | ??????????#???????????????????? ? ? ??# #? """ #?? | | ???????????????????????#?##???? ????###+########?? | | ????????????????????????????????????# ######### | | ????????????????????????#????"??????# "" # #[ | | ??????????#??????????"??????????????# Y" # < # | | ???????????????????????#????????????# "" # # """ | | ??????????#??????? ?????????????????# + + """ | | ??????????#?????????????????????????# # # """ | | #####????? ????????????????????#????#! # # | | #??????????#????????????? ? ???# # # | | ? ????????????????????#???? ?#??# # ##### | | ? ????????????????????????? #??###### #???? | | ?# ?????????????#?????????? #??#????# #??#? | | ?# #??????????????????????? ???#????# #???# | | ?# #?????????????????#????? #???????## #??#? | | ?# #???????????#?########?? ####?#?### #???? | | ?# #????##########//!!!!#?# ########## ##??? | | ?# #??###""!"|""##//!!!!### #??? | +----------------------------------------------------+ Best States ------------- Heat Dissipation 25 Energy Generation 10 Energy Capacity 250 Matter Stores 300 Matter Capacity 300 Sight Range 16 Terrain Scan Range 16 Terrain Scan Density 10 Evasion (%) 55 Item Schematics ----------------- None Robot Schematics ------------------ None Fabricated ------------ Nothing Alien Tech Used ----------------- None Achievements -------------- None Challenges ------------ None Game ------ Seed UtilityDataWings Manual? 0 Play Time 00:09:17 Cumulative 1041.6 hours Start 2023.07.11 @ 09:53:38 End 2023.07.11 @ 10:01:32 Sessions 1 Manual Loads 0 Difficulty Rogue Special Mode None Game No. 430 Rogue 430 Adventurer 0 Explorer 0 Win Type - Total 14 Types 12/0/1/1/0/0/0/0/0 Lore% 72 Gallery% 83 Achievement% 71 Wizard Run 0 Options --------- ASCII 0 Keyboard 1 Movement Numpad Keybinds 0 Fullscreen 1 Font 18/SmallcapsGlow Map View 112x50 Tactical HUD 1 Map Filters NONE Filters NONE Steam 1 RUN: 4d3604cf-c5e8-4194-80a7-0402b3603069